fUST/lending_fUST_20250116
["ID","MTS","AMOUNT","RATE_DAILY","PERIOD"]
[349176184,1737011440836,-691.88,0.00019726,3]
[349176185,1737011440846,-500.0,0.00019726,3]
[349176186,1737011440856,-500.0,0.00019726,3]
[349176187,1737011440866,-500.0,0.00019726,3]
[349176188,1737011440876,-500.0,0.00019726,3]
[349176189,1737011440886,-1078.83,0.00019726,3]
[349176190,1737011440896,-665.03,0.00019726,3]
[349176191,1737011440905,-500.0,0.00019726,3]
[349176192,1737011440916,-500.0,0.00019726,3]
[349176193,1737011440925,-500.0,0.00019726,3]
[349176194,1737011440935,-500.0,0.00019726,3]
[349176195,1737011440946,-500.0,0.00019726,3]
[349176196,1737011440956,-507.87,0.00019726,3]
[349176197,1737011440965,-500.0,0.00019726,3]
[349176198,1737011440974,-500.0,0.00019726,3]
[349176199,1737011440984,-910.18,0.00019726,2]
[349176200,1737011440994,-12101.44,0.00019726,3]
[349176201,1737011441004,-636.01,0.00019726,3]
[349176202,1737011441014,-500.0,0.00019726,3]
[349176203,1737011441024,-4335.54,0.00019726,3]
[349176204,1737011441034,-707.69,0.00019726,3]
[349176205,1737011441044,-500.0,0.00019726,3]
[349176206,1737011441053,-500.0,0.00019726,3]
[349176207,1737011441062,-500.0,0.00019726,3]
[349176208,1737011441072,-500.0,0.00019726,3]
[349176209,1737011441083,-500.0,0.00019726,3]
[349176210,1737011441095,-1798.32,0.00019726,3]
[349176211,1737011441105,-500.0,0.00019726,3]
[349176212,1737011441114,-500.0,0.00019726,3]
[349176213,1737011441124,-500.0,0.00019726,3]
[349176214,1737011441135,-500.0,0.00019726,3]
[349176215,1737011441144,-934.83,0.00019726,3]
[349176216,1737011441154,-516.15,0.00019726,3]
[349176217,1737011441167,-500.0,0.00019726,3]
[349176218,1737011441177,-24617.3,0.00019726,3]
[349176219,1737011441188,-740.27,0.00019726,3]
[349176220,1737011441198,-528.7,0.00019726,3]
[349176221,1737011441208,-500.0,0.00019726,3]
[349176222,1737011441218,-2994.9,0.00019726,3]
[349176223,1737011441227,-1398.64,0.00019726,3]
[349176224,1737011441238,-500.0,0.00019726,3]
[349176225,1737011441247,-611.5,0.00019726,3]
[349176226,1737011441259,-763.37,0.00019726,3]
[349176227,1737011441269,-500.0,0.00019726,3]
[349176228,1737011441279,-1812.81,0.00019726,3]
[349176229,1737011441290,-8855.21,0.00019726,3]
[349176230,1737011441299,-268.71818721,0.00019726,3]
[349176231,1737011441309,-500.0,0.00019726,3]
[349176232,1737011441319,-1029.95,0.00019726,3]
[349176233,1737011441329,-1465.21,0.00019726,3]
[349176234,1737011441339,-595.22,0.00019726,3]
[349176235,1737011441349,-852.26,0.00019726,3]
[349176236,1737011441358,-500.0,0.00019726,3]
[349176237,1737011441367,-503.68,0.00019726,3]
[349176238,1737011441378,-4262.96,0.00019726,3]
[349176239,1737011441387,-853.82,0.00019726,3]
[349176240,1737011441397,-500.0,0.00019726,3]
[349176241,1737011441407,-1021.24,0.00019726,3]
[349176242,1737011441418,-2610.1,0.00019726,3]
[349176243,1737011441428,-3097.42,0.00019726,3]
[349176244,1737011441439,-500.0,0.00019726,3]
[349176245,1737011441448,-500.0,0.00019726,3]
[349176246,1737011441459,-18966.59,0.00019726,3]
[349176247,1737011441469,-1416.32,0.00019726,3]
[349176248,1737011441479,-795.67,0.00019726,3]
[349176249,1737011441489,-500.0,0.00019726,3]
[349176250,1737011441499,-1232.67,0.00019726,3]
[349176251,1737011441509,-1118.9,0.00019726,3]
[349176252,1737011441519,-3715.74,0.00019726,3]
[349176253,1737011441529,-500.0,0.00019726,3]
[349176254,1737011441539,-500.0,0.00019726,3]
[349176255,1737011441549,-1681.01,0.00019726,3]
[349176256,1737011441559,-500.0,0.00019726,3]
[349176257,1737011441568,-500.0,0.00019726,3]
[349176258,1737011441578,-39629.91,0.00019726,3]
[349176259,1737011441588,-500.0,0.00019726,3]
[349176260,1737011441598,-1613.26,0.00019726,3]
[349176261,1737011441608,-2102.21,0.00019726,3]
[349176262,1737011441618,-500.0,0.00019726,3]
[349176263,1737011441628,-1116.16,0.00019726,3]
[349176264,1737011441638,-2095.15,0.00019726,3]
[349176265,1737011441648,-7898.18,0.00019726,3]
[349176266,1737011441659,-780.29,0.00019726,3]
[349176267,1737011441669,-2317.56,0.00019726,3]
[349176268,1737011441678,-1292.11,0.00019726,3]
[349176269,1737011441687,-500.0,0.00019726,3]
[349176270,1737011441698,-516.73,0.00019726,3]
[349176271,1737011441709,-631.3,0.00019726,3]
[349176272,1737011441719,-500.0,0.00019726,3]
[349176273,1737011441729,-1300.49,0.00019726,3]
[349176274,1737011441740,-4756.31111007,0.00019728,2]
[349176275,1737011441749,-690.717,0.00019782,2]
[349176276,1737011441759,-3144.43,0.000198,2]
[349176277,1737011441768,-12075.54,0.000198,2]
[349176278,1737011441779,-5943.40122973,0.00019821,2]
[349176279,1737011441788,-509.39611395,0.00019863,3]
[349176280,1737011441798,-173.95510738,0.00019863,3]
[349176281,1737011441808,-500.0,0.00019863,3]
[349176282,1737011441817,-559.28504244,0.00019863,3]
[349176283,1737011441827,-526.0,0.00019863,3]
[349176284,1737011441837,-500.0,0.00019863,3]
[349176285,1737011441847,-200.18,0.00019863,3]
[349176286,1737011441856,-500.0,0.00019863,3]
[349176287,1737011441865,-500.0,0.00019863,3]
[349176288,1737011441875,-500.0,0.00019863,3]
[349176289,1737011441886,-500.0,0.00019863,3]
[349176290,1737011441895,-628.35,0.00019863,3]
[349176291,1737011441905,-500.0,0.00019863,3]
[349176292,1737011441917,-500.0,0.00019863,3]
[349176293,1737011441927,-500.0,0.00019863,3]
[349176294,1737011441938,-500.0,0.00019863,3]
[349176295,1737011441948,-313.84434216,0.00019863,3]
[349176296,1737011441958,-500.0,0.00019863,3]
[349176297,1737011441968,-272.43226078,0.00019863,3]
[349176298,1737011441978,-555.93910561,0.00019863,3]
[349176299,1737011441987,-500.0,0.00019863,3]
[349176300,1737011441998,-500.0,0.00019863,3]
[349176301,1737011442008,-755.63,0.00019863,3]
[349176302,1737011442017,-500.0,0.00019863,3]
[349176303,1737011442027,-545.87,0.00019863,3]
[349176304,1737011442038,-500.0,0.00019863,3]
[349176305,1737011442047,-1022.95,0.00019863,3]
[349176306,1737011442058,-500.0,0.00019863,3]
[349176307,1737011442069,-500.0,0.00019863,3]
[349176308,1737011442079,-761.24,0.00019863,3]
[349176309,1737011442092,-500.0,0.00019863,3]
[349176310,1737011442102,-517.61,0.00019863,3]
[349176311,1737011442112,-604.71,0.00019863,3]
[349176312,1737011442122,-966.68,0.00019863,3]
[349176313,1737011442134,-529.11,0.00019863,3]
[349176314,1737011442144,-1186.33,0.00019863,3]
[349176315,1737011442154,-546.88,0.00019863,3]
[349176316,1737011442166,-500.0,0.00019863,3]
[349176317,1737011442176,-500.0,0.00019863,3]
[349176318,1737011442186,-500.0,0.00019863,3]
[349176319,1737011442195,-500.0,0.00019863,3]
[349176320,1737011442205,-500.0,0.00019863,3]
[349176321,1737011442215,-500.0,0.00019863,3]
[349176322,1737011442225,-571.16,0.00019863,3]
[349176323,1737011442235,-691.88,0.00019863,3]
[349176324,1737011442244,-500.0,0.00019863,3]
[349176325,1737011442254,-572.03489005,0.00019863,3]
[349176326,1737011442264,-500.0,0.00019863,3]
[349176327,1737011442274,-500.0,0.00019863,3]
[349176328,1737011442283,-1078.83,0.00019863,3]
[349176329,1737011442293,-665.03,0.00019863,3]
[349176330,1737011442302,-500.0,0.00019863,3]
[349176331,1737011442312,-500.0,0.00019863,3]
[349176332,1737011442321,-500.0,0.00019863,3]
[349176333,1737011442330,-500.0,0.00019863,3]
[349176334,1737011442340,-500.0,0.00019863,3]
[349176335,1737011442350,-507.87,0.00019863,3]
[349176336,1737011442359,-500.0,0.00019863,3]
[349176337,1737011442368,-500.0,0.00019863,3]
[349176338,1737011442378,-910.18,0.00019863,2]
[349176339,1737011442388,-12101.44,0.00019863,3]
[349176340,1737011442398,-636.01,0.00019863,3]
[349176341,1737011442408,-500.0,0.00019863,3]
[349176342,1737011442418,-4335.54,0.00019863,3]
[349176343,1737011442428,-707.69,0.00019863,3]
[349176344,1737011442438,-500.0,0.00019863,3]
[349176345,1737011442448,-285.44330196,0.00019863,3]
[349176346,1737011442457,-500.0,0.00019863,3]
[349176347,1737011442466,-500.0,0.00019863,3]
[349176348,1737011442475,-500.0,0.00019863,3]
[349176349,1737011442485,-1798.32,0.00019863,3]
[349176350,1737011442494,-500.0,0.00019863,3]
[349176351,1737011442504,-500.0,0.00019863,3]
[349176352,1737011442513,-500.0,0.00019863,3]
[349176353,1737011442522,-500.0,0.00019863,3]
[349176354,1737011442532,-934.83,0.00019863,3]
[349176355,1737011442542,-516.15,0.00019863,3]
[349176356,1737011442552,-500.0,0.00019863,3]
[349176357,1737011442563,-24617.3,0.00019863,3]
[349176358,1737011442575,-740.27,0.00019863,3]
[349176359,1737011442586,-528.7,0.00019863,3]
[349176360,1737011442596,-500.0,0.00019863,3]
[349176361,1737011442606,-2994.9,0.00019863,3]
[349176362,1737011442615,-1398.64,0.00019863,3]
[349176363,1737011442626,-500.0,0.00019863,3]
[349176364,1737011442636,-611.5,0.00019863,3]
[349176365,1737011442646,-763.37,0.00019863,3]
[349176366,1737011442655,-500.0,0.00019863,3]
[349176367,1737011442665,-1812.81,0.00019863,3]
[349176368,1737011442675,-8855.21,0.00019863,3]
[349176369,1737011442686,-500.0,0.00019863,3]
[349176370,1737011442696,-1029.95,0.00019863,3]
[349176371,1737011442705,-1465.21,0.00019863,3]
[349176372,1737011442715,-595.22,0.00019863,3]
[349176373,1737011442725,-852.26,0.00019863,3]
[349176374,1737011442735,-500.0,0.00019863,3]
[349176375,1737011442744,-503.68,0.00019863,3]
[349176376,1737011442754,-4262.96,0.00019863,3]
[349176377,1737011442765,-853.82,0.00019863,3]
[349176378,1737011442775,-500.0,0.00019863,3]
[349176379,1737011442785,-1021.24,0.00019863,3]
[349176380,1737011442794,-2610.1,0.00019863,3]
[349176381,1737011442803,-3097.42,0.00019863,3]
[349176382,1737011442814,-500.0,0.00019863,3]
[349176383,1737011442824,-500.0,0.00019863,3]
[349176384,1737011442834,-18966.59,0.00019863,3]
[349176385,1737011442843,-1416.32,0.00019863,3]
[349176386,1737011442853,-795.67,0.00019863,3]
[349176387,1737011442863,-500.0,0.00019863,3]
[349176388,1737011442873,-1232.67,0.00019863,3]
[349176389,1737011442883,-1118.9,0.00019863,3]
[349176390,1737011442894,-500.0,0.00019863,3]
[349176393,1737011442904,-3715.74,0.00019863,3]
[349176394,1737011442912,-500.0,0.00019863,3]
[349176395,1737011442922,-1681.01,0.00019863,3]
[349176397,1737011442932,-500.0,0.00019863,3]
[349176400,1737011442942,-500.0,0.00019863,3]
[349176403,1737011442951,-39629.91,0.00019863,3]
[349176418,1737011443061,-500.0,0.00019863,3]
[349176420,1737011443072,-1613.26,0.00019863,3]
[349176422,1737011443084,-2102.21,0.00019863,3]
[349176424,1737011443096,-500.0,0.00019863,3]
[349176426,1737011443105,-1116.16,0.00019863,3]
[349176429,1737011443115,-2095.15,0.00019863,3]
[349176431,1737011443124,-7898.18,0.00019863,3]
[349176434,1737011443134,-780.29,0.00019863,3]
[349176437,1737011443144,-2317.56,0.00019863,3]
[349176439,1737011443154,-1292.11,0.00019863,3]
[349176441,1737011443164,-500.0,0.00019863,3]
[349176443,1737011443175,-516.73,0.00019863,3]
[349176445,1737011443184,-631.3,0.00019863,3]
[349176447,1737011443194,-500.0,0.00019863,3]
[349176449,1737011443204,-1300.49,0.00019863,3]
[349176451,1737011443213,-387.54144052,0.000199,2]
[349176453,1737011443223,-1000.0,0.00019921,2]
[349176454,1737011443232,-1000.0,0.00019921,2]
[349176455,1737011443242,-1000.0,0.00019921,2]
[349176456,1737011443252,-4756.31111007,0.00019934,2]
[349176457,1737011443262,-500.0,0.00019973,2]
[349176458,1737011443272,-500.0,0.00019973,2]
[349176460,1737011443281,-500.69674893,0.00019973,2]
[349176462,1737011443290,-500.0,0.00019973,2]
[349176464,1737011443300,-500.0,0.00019973,2]
[349176465,1737011443310,-564325.84969303,0.0002,5]
[349176467,1737011443319,-336551.60146797,0.0002,5]
[349176470,1737011443637,-293.33861973,0.0002,5]
[349176471,1737011443649,-43480.48359869,0.0002,5]
[349176511,1737011446495,-1348.74,0.00019178,2]
[349176513,1737011446505,-530.77,0.00019178,2]
[349176515,1737011446515,-120.49,0.00019315,3]
[349176925,1737011541340,163.201479,0.00013973,2]
[349176928,1737012286331,100107.26231827,0.00025,120]
[349176935,1737012428392,3589.0,0.00015053,2]
[349177141,1737012632803,-500.0,0.00018109,2]
[349177144,1737012632820,-4429.6097538,0.00018109,2]
[349177146,1737012632829,-162.1301093,0.00018177,2]
[349177148,1737012632839,-250.0,0.00018402,2]
[349177150,1737012632849,-456.244,0.00019,2]
[349177152,1737012632859,-166.182604,0.00019068,3]
[349177155,1737012632868,-10336.57289583,0.00019075,2]
[349177157,1737012632881,-2828.42710417,0.00019075,2]
[349177159,1737012632891,-300.0,0.00019075,2]
[349177161,1737012632900,-5349.06110682,0.00019078,2]
[349177163,1737012632909,-241.09870305,0.00019078,2]
[349177165,1737012632919,-158.38,0.00019176,2]
[349177167,1737012632928,-500.0,0.00019176,2]
[349177169,1737012632937,-196.96077666,0.00019176,2]
[349177171,1737012632947,-500.0,0.00019176,2]
[349177173,1737012632957,-266.55567038,0.00019176,2]
[349177175,1737012632966,-238.8334181,0.00019176,2]
[349177177,1737012632977,-500.0,0.00019176,2]
[349177179,1737012632986,-500.0,0.00019176,2]
[349177181,1737012632995,-500.0,0.00019176,2]
[349177183,1737012633006,-500.0,0.00019176,2]
[349177185,1737012633016,-500.0,0.00019176,2]
[349177187,1737012633026,-500.0,0.00019176,2]
[349177190,1737012633036,-392.64645175,0.00019176,2]
[349177192,1737012633047,-500.0,0.00019176,2]
[349177194,1737012633057,-500.0,0.00019176,2]
[349177196,1737012633068,-500.0,0.00019176,2]
[349177198,1737012633077,-629.57434055,0.00019176,2]
[349177200,1737012633087,-203.95887554,0.00019176,2]
[349177202,1737012633097,-500.0,0.00019176,2]
[349177204,1737012633107,-500.0,0.00019176,2]
[349177206,1737012633116,-500.0,0.00019176,2]
[349177208,1737012633126,-500.0,0.00019176,2]
[349177210,1737012633135,-500.0,0.00019176,2]
[349177211,1737012633145,-1634818.08585822,0.00019177,5]
[349177240,1737012638718,-40058.38951803,0.00019177,5]
[349177242,1737012638730,-610.02460827,0.00019177,5]
[349177245,1737012638747,-1462.89765099,0.00019177,5]
[349177278,1737012640669,-377.20175982,0.00019177,5]
[349177279,1737012640691,-846.38992981,0.00019177,5]
[349177375,1737012679049,163.429387,0.00013973,2]
[349177403,1737013805463,335.31772,0.00013973,2]
[349177457,1737013833013,-300.0,0.0001807,2]
[349177458,1737013833023,-30495.5435196,0.00018071,2]
[349177459,1737013833035,-169.114824,0.00018088,2]
[349177460,1737013833045,-207.35213991,0.000189,2]
[349177461,1737013833056,-437.263,0.00019,2]
[349177462,1737013833067,-44461.0679896,0.00019,2]
[349177463,1737013833079,-1302987.8006854,0.00019,2]
[349177464,1737013833089,-714.33798702,0.00019077,2]
[349177465,1737013833099,-4814.15499612,0.00019077,2]
[349177466,1737013833110,-220.0,0.000191,5]
[349177467,1737013833120,-199.27463205,0.000191,4]
[349177468,1737013833129,-358.1414053,0.000191,2]
[349177469,1737013833139,-158.38,0.000191,2]
[349177470,1737013833150,-500.0,0.00019173,2]
[349177471,1737013833159,-500.0,0.00019173,2]
[349177472,1737013833169,-17287.11311469,0.00019175,5]
[349177473,1737013833179,-554.50088274,0.00019176,2]
[349177474,1737013833190,-218.32800758,0.00019176,2]
[349177475,1737013833199,-152.8296053,0.00019176,2]
[349177476,1737013833209,-1546.94855246,0.00019176,2]
[349177477,1737013833219,-1398731.96886515,0.00019177,5]
[349177478,1737013833231,-421.49265646,0.00019177,5]
[349177492,1737013838638,-1895.41251532,0.00019177,5]
[349177495,1737013839457,-3178.57643249,0.00019177,5]
[349177496,1737013839474,-33044.64171452,0.00019177,5]
[349177544,1737013843785,-15224.26399245,0.00019177,5]
[349177545,1737013843797,-10849.0,0.00019177,5]
[349177546,1737013843809,-499.9967325,0.00019177,5]
[349177547,1737013843820,-24616.34134467,0.00019177,5]
[349177548,1737013843892,-1985.738076,0.00019177,5]
[349177549,1737013843905,-2875.685574,0.00019177,5]
[349177555,1737014223380,1000.0,0.00025,120]
[349177556,1737014550715,160.0,0.00023817,120]
[349177560,1737014706768,318.551834,0.00013973,2]
[349177561,1737014791264,160.0,0.00023534,120]
[349177563,1737014850759,160.0,0.00024967,120]
[349177728,1737015031997,-169.114824,0.00018178,2]
[349177730,1737015032007,-470.32648118,0.00018221,2]
[349177732,1737015032018,-601.82146207,0.00018703,2]
[349177741,1737015032102,-216.64745207,0.00018703,2]
[349177743,1737015032112,-552.574,0.00018793,2]
[349177745,1737015032121,-395.0,0.0001886,2]
[349177747,1737015032130,-1000.0,0.00019,19]
[349177749,1737015032140,-419.039,0.00019,2]
[349177751,1737015032149,-228.56428539,0.00019077,2]
[349177753,1737015032158,-211.34959772,0.00019077,2]
[349177755,1737015032168,-4332.73949649,0.00019078,2]
[349177757,1737015032178,-465.26632406,0.00019132,2]
[349177758,1737015032187,-300.0,0.00019172,2]
[349177759,1737015032197,-500.0,0.00019173,2]
[349177760,1737015032207,-500.0,0.00019173,2]
[349177761,1737015032217,-500.0,0.00019176,2]
[349177762,1737015032226,-228.60271978,0.00019176,2]
[349177763,1737015032236,-152.8296053,0.00019176,2]
[349177764,1737015032246,-503.42511213,0.00019176,2]
[349177765,1737015032255,-221792.08757849,0.00019177,5]
[349177766,1737015032265,-50595.89949453,0.00019177,5]
[349177767,1737015032275,-4424840.4827713,0.00019177,5]
[349177768,1737015032285,-200.0,0.00019178,5]
[349177769,1737015032295,-500.0,0.00019178,2]
[349177770,1737015032305,-500.0,0.00019178,2]
[349177771,1737015032314,-486.25233002,0.00019178,2]
[349177772,1737015032327,-500.0,0.00019178,2]
[349177773,1737015032336,-500.0,0.00019178,2]
[349177774,1737015032346,-500.0,0.00019178,2]
[349177776,1737015032355,-186.36228371,0.00019178,2]
[349177778,1737015032366,-500.0,0.00019178,2]
[349177780,1737015032375,-500.0,0.00019178,2]
[349177782,1737015032385,-500.0,0.00019178,2]
[349177784,1737015032395,-190.63722255,0.00019178,2]
[349177786,1737015032407,-500.0,0.00019178,2]
[349177788,1737015032418,-500.0,0.00019178,2]
[349177790,1737015032428,-500.0,0.00019178,2]
[349177791,1737015032438,-500.0,0.00019178,2]
[349177793,1737015032447,-500.0,0.00019178,2]
[349177795,1737015032457,-500.0,0.00019178,2]
[349177797,1737015032468,-500.0,0.00019178,2]
[349177799,1737015032478,-500.0,0.00019178,2]
[349177801,1737015032488,-500.0,0.00019178,2]
[349177803,1737015032498,-373.74350622,0.00019178,2]
[349177805,1737015032509,-570.93,0.00019178,2]
[349177807,1737015032519,-2267.47,0.00019178,2]
[349177809,1737015032529,-725.01,0.00019178,2]
[349177811,1737015032539,-500.0,0.00019178,2]
[349177813,1737015032549,-500.0,0.00019178,2]
[349177815,1737015032559,-500.0,0.00019178,2]
[349177817,1737015032569,-948.15,0.00019178,2]
[349177819,1737015032578,-500.0,0.00019178,2]
[349177821,1737015032589,-500.0,0.00019178,2]
[349177823,1737015032599,-500.0,0.00019178,2]
[349177825,1737015032609,-500.0,0.00019178,2]
[349177827,1737015032619,-500.0,0.00019178,2]
[349177829,1737015032629,-500.0,0.00019178,2]
[349177831,1737015032638,-500.0,0.00019178,2]
[349177833,1737015032648,-541.19,0.00019178,2]
[349177835,1737015032657,-500.0,0.00019178,2]
[349177837,1737015032667,-500.0,0.00019178,2]
[349177839,1737015032677,-857.76,0.00019178,2]
[349177841,1737015032687,-500.0,0.00019178,2]
[349177843,1737015032697,-500.0,0.00019178,2]
[349177845,1737015032707,-500.0,0.00019178,2]
[349177847,1737015032717,-500.0,0.00019178,2]
[349177849,1737015032726,-500.0,0.00019178,2]
[349177851,1737015032735,-500.0,0.00019178,2]
[349177853,1737015032745,-588.6355821,0.00019178,2]
[349177855,1737015032754,-500.0,0.00019178,2]
[349177857,1737015032764,-248.62854578,0.00019178,2]
[349177859,1737015032774,-500.0,0.00019178,2]
[349177861,1737015032783,-682.63,0.00019178,2]
[349177863,1737015032793,-500.0,0.00019178,2]
[349177865,1737015032802,-500.0,0.00019178,2]
[349177867,1737015032812,-500.0,0.00019178,2]
[349177869,1737015032821,-500.0,0.00019178,2]
[349177871,1737015032832,-500.0,0.00019178,2]
[349177873,1737015032843,-500.0,0.00019178,2]
[349177875,1737015032852,-500.0,0.00019178,2]
[349177877,1737015032862,-500.0,0.00019178,2]
[349177880,1737015032871,-555.21,0.00019178,2]
[349177882,1737015032881,-508.66,0.00019178,2]
[349177884,1737015032890,-2296.57,0.00019178,2]
[349177886,1737015032900,-2296.57,0.00019178,2]
[349177888,1737015032910,-2296.57,0.00019178,2]
[349177890,1737015032920,-2296.57,0.00019178,2]
[349177892,1737015032930,-500.0,0.00019178,2]
[349177894,1737015032940,-2296.57,0.00019178,2]
[349177896,1737015032949,-2296.57,0.00019178,2]
[349177898,1737015032959,-2296.57,0.00019178,2]
[349177900,1737015032969,-500.0,0.00019178,2]
[349177902,1737015032979,-2296.57,0.00019178,2]
[349177904,1737015032988,-2296.57,0.00019178,2]
[349177906,1737015032998,-2296.57,0.00019178,2]
[349177908,1737015033008,-2296.57,0.00019178,2]
[349177910,1737015033018,-2296.57,0.00019178,2]
[349177912,1737015033028,-2296.57,0.00019178,2]
[349177914,1737015033037,-2296.57,0.00019178,2]
[349177916,1737015033047,-2296.57,0.00019178,2]
[349177918,1737015033057,-2296.57,0.00019178,2]
[349177920,1737015033067,-2296.57,0.00019178,2]
[349177922,1737015033077,-2296.57,0.00019178,2]
[349177924,1737015033087,-2296.57,0.00019178,2]
[349177926,1737015033097,-2296.57,0.00019178,2]
[349177928,1737015033108,-500.0,0.00019178,2]
[349177930,1737015033118,-2296.57,0.00019178,2]
[349177932,1737015033128,-2296.57,0.00019178,2]
[349177933,1737015033138,-2296.57,0.00019178,2]
[349177936,1737015033147,-2296.63,0.00019178,2]
[349177938,1737015033157,-3493.99,0.00019178,2]
[349177954,1737015033321,-204.13746437,0.00019178,2]
[349177956,1737015033338,-500.0,0.00019178,2]
[349177958,1737015033348,-348.86042989,0.00019178,2]
[349178022,1737015037804,-57056.6117426,0.0001907,2]
[349178024,1737015037814,-151.13957011,0.00019178,2]
[349178026,1737015037824,-1370.85,0.00019178,2]
[349178028,1737015037834,-500.0,0.00019178,2]
[349178030,1737015037844,-500.0,0.00019178,2]
[349178032,1737015037854,-701.13,0.00019178,2]
[349178034,1737015037864,-500.0,0.00019178,2]
[349178036,1737015037873,-640.37,0.00019178,2]
[349178038,1737015037882,-24294.84,0.00019178,2]
[349178040,1737015037892,-500.0,0.00019178,2]
[349178042,1737015037901,-11805.88,0.00019178,2]
[349178044,1737015037911,-500.0,0.00019178,2]
[349178046,1737015037922,-500.0,0.00019178,2]
[349178048,1737015037932,-500.0,0.00019178,2]
[349178050,1737015037942,-1107.55,0.00019178,2]
[349178052,1737015037951,-572.53,0.00019178,2]
[349178054,1737015037961,-2409.77,0.00019178,2]
[349178056,1737015037974,-500.0,0.00019178,2]
[349178059,1737015037985,-500.0,0.00019178,2]
[349178061,1737015037995,-7559.92,0.00019178,2]
[349178062,1737015038006,-601.0800264,0.00019178,2]
[349178082,1737015040367,-319.95599936,0.00019178,2]
[349178183,1737015042931,-563.57397424,0.00019178,2]
[349178186,1737015042941,-772.46,0.00019178,2]
[349178189,1737015042951,-639.2,0.00019178,2]
[349178192,1737015042961,-1223.91,0.00019178,2]
[349178196,1737015042972,-500.0,0.00019178,2]
[349178199,1737015042982,-500.0,0.00019178,2]
[349178201,1737015042992,-500.0,0.00019178,2]
[349178204,1737015043002,-815.88096316,0.00019178,2]
[349178242,1737015150829,160.0,0.00023694,120]
[349178243,1737015296900,502.0,0.00015053,2]
[349178244,1737015511315,160.0,0.00024504,120]
[349178245,1737015605407,302.624242,0.00013973,2]
[349178246,1737015630759,160.0,0.00023746,120]
[349178247,1737015870774,160.0,0.00024342,120]
[349178248,1737015931517,160.0,0.00024209,120]
[349178270,1737016050765,160.0,0.00024235,120]
[349178275,1737016100868,692.52788366,0.000125,2]
[349178276,1737016100895,2749.86688367,0.000125,2]
[349178278,1737016110741,160.0,0.00024098,120]
[349178279,1737016112167,270.08218355,0.00014114,2]
[349178280,1737016114429,275.95825266,0.0001,2]
[349178282,1737016123661,842.90250387,0.00015,2]
[349178283,1737016124506,566.46677845,0.000149,2]
[349178284,1737016124871,1000.0,0.0001,2]
[349178356,1737016232484,-500.0,0.00015129,2]
[349178357,1737016232495,-500.0,0.00015852,2]
[349178358,1737016232506,-500.0,0.00016686,2]
[349178360,1737016232516,-500.0,0.00017565,2]
[349178362,1737016232526,-401.631,0.0001822,2]
[349178364,1737016232535,-500.0,0.00018443,2]
[349178366,1737016232545,-191.5997569,0.00018986,2]
[349178367,1737016232554,-158.44061407,0.00019,2]
[349178368,1737016232563,-153.63,0.00019048,2]
[349178369,1737016232574,-184.93089804,0.00019078,2]
[349178370,1737016232584,-280.9,0.00019166,3]
[349178371,1737016232594,-151.0,0.00019177,2]
[349178372,1737016232603,-300.0,0.00019177,2]
[349178373,1737016232613,-514.39714895,0.00019177,2]